fUST/lending_fUST_20240705
["ID","MTS","AMOUNT","RATE_DAILY","PERIOD"]
[331226525,1720143341851,179.59,0.00010959,2]
[331226531,1720143352430,897.96,0.00010959,2]
[331226532,1720143367646,255316.56743067,0.0002954,120]
[331226535,1720143398801,6426.95127103,0.00013283,2]
[331226536,1720143402430,1021.42317582,0.00013283,2]
[331226537,1720143402470,2116.35615242,0.00013283,2]
[331226545,1720143512575,155.14377165,9.999e-05,2]
[331226548,1720143593972,209.03587635,0.0001212,2]
[331226549,1720143594014,258.71107015,0.0001212,2]
[331226550,1720143596691,195.40594659,0.0001212,2]
[331226551,1720143597624,304.44302945,0.0001212,2]
[331226552,1720143600030,510.09603467,0.0001212,2]
[331226553,1720143600094,11154.99668787,0.0001212,2]
[331226554,1720143601464,155.36010693,0.0001212,2]
[331226555,1720143602288,525.20737499,0.0001212,2]
[331226556,1720143604085,1071.28221588,0.0001212,2]
[331226557,1720143605228,1158.30679459,0.0001212,2]
[331226558,1720143605826,210.07417186,0.0001212,2]
[331226559,1720143606981,154.79103211,0.0001212,2]
[331226560,1720143610742,487.24957934,0.0001212,2]
[331226561,1720143612126,207.19381533,0.0001212,2]
[331226562,1720143612264,272.35834404,0.0001212,2]
[331226563,1720143613468,3137.5012568,0.0001212,2]
[331226564,1720143614853,154.79103211,0.0001212,2]
[331226565,1720143615462,2130.60899933,0.0001212,2]
[331226566,1720143616656,738.59227567,0.0001212,2]
[331226567,1720143616692,169.84442265,0.0001212,2]
[331226568,1720143620294,210.06457296,0.0001212,2]
[331226569,1720143621923,16258.68622924,0.0001212,2]
[331226570,1720143622061,202.96633695,0.0001212,2]
[331226571,1720143652266,155.88409526,9.999e-05,2]
[331226572,1720143691628,406.51119152,0.0001212,2]
[331226573,1720143702172,162.99690454,0.0001,2]
[331226574,1720143713780,526.06091387,9.999e-05,2]
[331226575,1720143714951,24900.0,0.00013872,2]
[331226576,1720143716532,510.09603467,9.999e-05,2]
[331226577,1720143717407,273.79190844,9.999e-05,2]
[331226578,1720143732348,225.88432277,9.999e-05,2]
[331226579,1720143739366,271.26160307,0.00014055,2]
[331226580,1720143754066,510.09603467,0.0001212,2]
[331226581,1720143756915,5000.0,0.00029518,30]
[331226582,1720143800643,408.7028726,0.00013896,2]
[331226583,1720143804584,1071.28221588,9.999e-05,2]
[331226584,1720143819132,150.0,0.00014,2]
[331226585,1720143826952,1926.0610359,0.00013923,2]
[331226586,1720143862891,204.215059,0.00013923,2]
[331226592,1720143958795,3000.0,0.00013923,2]
[331226593,1720143991375,527.47928628,9.999e-05,2]
[331226594,1720144004453,378.3419311,0.00014024,2]
[331226595,1720144043863,155.09128672,0.0001212,2]
[331226596,1720144046013,574.08007735,0.000142,2]
[331226598,1720144119149,150.0,0.00014,2]
[331226599,1720144159418,-300.0,0.00014793,2]
[331226601,1720144159449,-104.42980725,0.00014794,2]
[331226610,1720144173204,-8350.92743216,0.00014794,2]
[331226611,1720144173224,-1434.5963251,0.00014794,2]
[331226612,1720144173244,-3078.85157566,0.00014794,2]
[331226613,1720144173264,-1239.38460181,0.00014794,2]
[331226614,1720144173284,-1625.92283824,0.00014794,2]
[331226615,1720144173306,-1463.4054225,0.00014794,2]
[331226616,1720144173326,-1158.30679459,0.00014794,2]
[331226617,1720144173349,-1331.70081663,0.000149,2]
[331226618,1720144173368,-367.3673262,0.00014998,2]
[331226619,1720144173394,-431.53143545,0.00014998,2]
[331226620,1720144173414,-16296.50243166,0.00014999,2]
[331226687,1720144241980,-11477.28799954,0.00014999,2]
[331226689,1720144241992,-14452.51815512,0.00014999,2]
[331226691,1720144242002,-933.90404154,0.00015,2]
[331226692,1720144242011,-1040.94999405,0.00015,2]
[331226694,1720144242021,-808.08946619,0.00015,2]
[331226696,1720144242031,-2420.76089721,0.00015,2]
[331226698,1720144242040,-372.47160951,0.000151,2]
[331226700,1720144242050,-4603.61366551,0.00016244,2]
[331226702,1720144242060,-2800.00082769,0.00016254,2]
[331226774,1720144242740,-54414.94629589,0.00016254,2]
[331226776,1720144242750,-17247.80566422,0.00016255,2]
[331226778,1720144242759,-6076.9012323,0.00016255,2]
[331226780,1720144242769,-10575.75912083,0.00016255,2]
[331226782,1720144242779,-166.666666,0.00016438,2]
[331226784,1720144242789,-166.666666,0.00016823,2]
[331226786,1720144242800,-4711.13030053,0.00016969,2]
[331226788,1720144242810,-1158.30679459,0.00016969,2]
[331226790,1720144242819,-3078.85157566,0.00016969,2]
[331226792,1720144242828,-1338.49025736,0.00016969,2]
[331226794,1720144242837,-166.666666,0.00017208,2]
[331226796,1720144242846,-166.666666,0.00017592,2]
[331226798,1720144242855,-166.666666,0.00017977,2]
[331226800,1720144242865,-302.38608778,0.00018,2]
[331226802,1720144242874,-154.82649869,0.00018,2]
[331226804,1720144242883,-166.666666,0.00018362,2]
[331226806,1720144242892,-230.44330471,0.0001879,2]
[331226808,1720144242902,-30000.0,0.00018899,2]
[331226810,1720144242911,-197.13244658,0.00019,2]
[331226812,1720144242920,-176.75354072,0.00019,2]
[331226814,1720144242933,-250.0,0.00019041,2]
[331226816,1720144242942,-185.66442765,0.000191,2]
[331226818,1720144242951,-159.314574,0.00019178,2]
[331226820,1720144242960,-4603.61366551,0.0001999,2]
[331226821,1720144242969,-154.84561839,0.0002,2]
[331226823,1720144242979,-427.95620224,0.0002,2]
[331226825,1720144242988,-173.66290897,0.0002,2]
[331226827,1720144242997,-3968.06642419,0.0002,2]
[331226829,1720144243006,-153.84775957,0.0002,2]
[331226831,1720144243015,-177.42318646,0.0002,2]
[331226833,1720144243024,-201.52169544,0.0002,2]
[331226835,1720144243034,-570.59223907,0.0002,2]
[331226837,1720144243043,-154.84354669,0.0002,2]
[331226839,1720144243053,-154.82971762,0.0002,2]
[331226841,1720144243062,-394.44916863,0.000203,2]
[331226843,1720144243072,-204.215059,0.00020884,2]
[331226845,1720144243081,-257.3057843,0.00021,2]
[331226847,1720144243090,-231.98298575,0.00021,2]
[331226849,1720144243100,-750.0,0.00021096,2]
[331226851,1720144243109,-346.68161194,0.0002147,2]
[331226853,1720144243118,-3000.0,0.000215,2]
[331226855,1720144243128,-3000.0,0.0002151,2]
[331226857,1720144243138,-3000.0,0.0002152,2]
[331226859,1720144243148,-3000.0,0.0002153,2]
[331226861,1720144243158,-3000.0,0.0002154,2]
[331226863,1720144243167,-3000.0,0.0002155,2]
[331226865,1720144243177,-21773.52786748,0.0002156,2]
[331226867,1720144243194,-3000.0,0.0002156,2]
[331226869,1720144243205,-3000.0,0.0002157,2]
[331226871,1720144243214,-3000.0,0.0002158,2]
[331226874,1720144243224,-3000.0,0.0002159,2]
[331226876,1720144243234,-3000.0,0.000216,2]
[331226878,1720144243243,-3000.0,0.0002161,2]
[331226879,1720144243253,-3000.0,0.0002162,2]
[331226881,1720144243262,-3000.0,0.0002163,2]
[331226883,1720144243272,-4603.61366551,0.0002163,3]
[331226885,1720144243281,-3000.0,0.0002164,2]
[331226887,1720144243291,-3000.0,0.0002165,2]
[331226888,1720144243299,-3000.0,0.0002166,2]
[331226890,1720144243309,-3000.0,0.0002167,2]
[331226892,1720144243318,-3272.522855,0.0002168,2]
[331226894,1720144243327,-150.0,0.0002181,2]
[331226896,1720144243336,-1633.70475094,0.00022,2]
[331226898,1720144243346,-250.0,0.00022357,2]
[331226900,1720144243355,-754.8343081,0.00022434,2]
[331226902,1720144243364,-350.0,0.00022905,2]
[331226904,1720144243373,-200.0,0.00023,2]
[331226906,1720144243383,-176.68873957,0.00023245,2]
[331226908,1720144243392,-195.91881374,0.0002335,2]
[331226910,1720144243401,-176.68873957,0.00023432,2]
[331226912,1720144243410,-221.21572919,0.00023453,2]
[331226914,1720144243419,-210.31462431,0.00023506,2]
[331226916,1720144243429,-153.17748372,0.00023527,2]
[331226918,1720144243444,-626.7417154,0.00023555,2]
[331226920,1720144243454,-168.7363015,0.00023562,2]
[331226923,1720144243463,-153.13329186,0.00023788,2]
[331226925,1720144243472,-210.31462431,0.00023796,2]
[331226927,1720144243482,-166.78796466,0.00024061,2]
[331226928,1720144243491,-153.17748372,0.00024263,2]
[331226930,1720144243501,-151.08380421,0.00024655,2]
[331226932,1720144243510,-200.0,0.00024658,15]
[331226934,1720144243520,-380.0,0.00024658,2]
[331226936,1720144243529,-620.33708577,0.00024733,2]
[331226938,1720144243539,-176.68873957,0.00024786,2]
[331226940,1720144243548,-195.91881374,0.00024921,2]
[331226942,1720144243557,-4603.61366551,0.0002499,3]
[331226944,1720144243566,-189.04012198,0.00025,2]
[331226946,1720144243575,-22173.23120803,0.00025,2]
[331226948,1720144243584,-154.81144199,0.00025,2]
[331226950,1720144243593,-500.0,0.00025,30]
[331226952,1720144243604,-500.0,0.00025,30]
[331226954,1720144243619,-500.0,0.00025,30]
[331226956,1720144243629,-500.0,0.00025,30]
[331226958,1720144243639,-500.0,0.00025,30]
[331226961,1720144243650,-500.0,0.00025,30]
[331226963,1720144243661,-500.0,0.00025,30]
[331226964,1720144243671,-500.0,0.00025,30]
[331226966,1720144243687,-500.0,0.00025,30]
[331226969,1720144243700,-500.0,0.00025,30]
[331226971,1720144243710,-500.0,0.00025,30]
[331226972,1720144243720,-500.0,0.00025,30]
[331226974,1720144243729,-500.0,0.00025,30]
[331226976,1720144243739,-524.0,0.00025,30]
[331226978,1720144243748,-175.66791452,0.00025004,2]
[331226980,1720144243759,-176.68873957,0.00025033,2]
[331226982,1720144243768,-159.54122349,0.00025078,2]
[331226984,1720144243778,-195.91881374,0.00025199,2]
[331226986,1720144243788,-4603.61366551,0.00025491,3]
[331226988,1720144243798,-52100.07365113,0.00025501,2]
[331226990,1720144243813,-195.91881374,0.00025628,2]
[331226992,1720144243823,-210.31462431,0.00025664,2]
[331226994,1720144243832,-175.66791452,0.00025711,2]
[331226996,1720144243842,-210.31462431,0.0002572,2]
[331226998,1720144243851,-153.13329186,0.00025792,2]
[331227000,1720144243860,-151.08380421,0.00025798,2]
[331227002,1720144243869,-4462.98107428,0.00026,2]
[331227004,1720144243879,-210.31462431,0.00026036,2]
[331227005,1720144243889,-176.68873957,0.00026239,2]
[331227006,1720144243898,-210.31462431,0.00026462,2]
[331227007,1720144243907,-3000.0,0.000265,2]
[331227008,1720144243916,-3000.0,0.0002651,2]
[331227009,1720144243926,-3000.0,0.0002652,2]
[331227010,1720144243938,-4603.61366551,0.0002652,3]
[331227011,1720144243947,-3000.0,0.0002653,2]
[331227012,1720144243957,-3000.0,0.0002654,2]
[331227013,1720144243966,-153.13329186,0.00026545,2]
[331227014,1720144243975,-3000.0,0.0002655,2]
[331227015,1720144243984,-3000.0,0.0002656,2]
[331227016,1720144243993,-3000.0,0.0002657,2]
[331227017,1720144244002,-3000.0,0.0002658,2]
[331227018,1720144244012,-3000.0,0.0002659,2]
[331227019,1720144244021,-210.31462431,0.00026591,2]
[331227020,1720144244029,-3000.0,0.000266,2]
[331227021,1720144244039,-3000.0,0.0002661,2]
[331227022,1720144244048,-3000.0,0.0002662,2]
[331227023,1720144244057,-3000.0,0.0002663,2]
[331227024,1720144244066,-3000.0,0.0002664,2]
[331227025,1720144244075,-3000.0,0.0002665,2]
[331227026,1720144244084,-3000.0,0.0002666,2]
[331227027,1720144244093,-3000.0,0.0002667,2]
[331227028,1720144244102,-3000.0,0.0002668,2]
[331227029,1720144244112,-4603.61366551,0.0002668,3]
[331227030,1720144244121,-3000.0,0.0002669,2]
[331227031,1720144244130,-3000.0,0.000267,2]
[331227032,1720144244140,-3000.0,0.0002671,2]
[331227033,1720144244149,-3000.0,0.0002672,2]
[331227034,1720144244158,-3000.0,0.0002673,2]
[331227035,1720144244167,-3000.0,0.0002674,2]
[331227036,1720144244176,-3000.0,0.0002675,2]
[331227037,1720144244188,-3000.0,0.0002676,2]
[331227038,1720144244197,-3000.0,0.0002677,2]
[331227039,1720144244206,-3000.0,0.0002678,2]
[331227040,1720144244215,-3000.0,0.0002679,2]
[331227041,1720144244224,-3000.0,0.000268,2]
[331227042,1720144244233,-3000.0,0.0002681,2]
[331227043,1720144244243,-3000.0,0.0002682,2]
[331227044,1720144244252,-153.13329186,0.00026823,2]
[331227045,1720144244261,-3000.0,0.0002683,2]
[331227046,1720144244270,-4603.61366551,0.0002683,3]
[331227047,1720144244280,-3000.0,0.0002684,2]
[331227048,1720144244289,-3000.0,0.0002685,2]
[331227049,1720144244298,-3000.0,0.0002686,2]
[331227050,1720144244307,-3000.0,0.0002687,2]
[331227051,1720144244316,-3000.0,0.0002688,2]
[331227052,1720144244325,-3000.0,0.0002689,2]
[331227053,1720144244334,-3000.0,0.000269,2]
[331227054,1720144244343,-3000.0,0.0002691,2]
[331227055,1720144244352,-3000.0,0.0002692,2]
[331227056,1720144244361,-3000.0,0.0002693,2]
[331227057,1720144244370,-3000.0,0.0002694,2]
[331227058,1720144244380,-3000.0,0.0002695,2]
[331227059,1720144244390,-3000.0,0.0002696,2]
[331227060,1720144244399,-3305.948311,0.0002697,2]
[331227061,1720144244408,-195.91881374,0.00026977,2]
[331227062,1720144244417,-153.0,0.00027195,2]
[331227063,1720144244426,-153.0,0.00027195,2]
[331227064,1720144244439,-153.0,0.00027195,2]
[331227065,1720144244449,-153.0,0.00027195,2]
[331227067,1720144244457,-153.0,0.00027195,2]
[331227069,1720144244466,-153.0,0.00027195,2]
[331227071,1720144244476,-153.0,0.00027195,2]
[331227073,1720144244489,-750.0,0.00027195,2]
[331227076,1720144244499,-195.91881374,0.00027203,2]
[331227079,1720144244508,-195.91881374,0.00027312,2]
[331227082,1720144244517,-218.619388,0.00027397,120]
[331227085,1720144244526,-176.68873957,0.00027666,2]
[331227088,1720144244536,-195.91881374,0.00027694,2]
[331227090,1720144244545,-176.68873957,0.00027842,2]
[331227092,1720144244554,-176.68873957,0.00027886,2]
[331227094,1720144244563,-346.68161193,0.00028356,2]
[331227095,1720144244572,-195.91881374,0.00028439,2]
[331227096,1720144244581,-4603.61366551,0.00028837,3]
[331227097,1720144244590,-20969.18309024,0.00028847,2]
[331227098,1720144244599,-176.68873957,0.00029017,2]
[331227099,1720144244609,-176.68873957,0.0002929,2]
[331227100,1720144244623,-225.53942994,0.00029518,2]
[331227101,1720144244632,-1464.89089073,0.00029518,2]
[331227102,1720144244641,-4172.94461587,0.00029518,2]
[331227103,1720144244650,-24379.56777085,0.00029534,2]
[331227104,1720144244659,-587.92208219,0.00029534,2]
[331227105,1720144244668,-150.0,0.00029534,7]
[331227106,1720144244678,-150.0,0.00029534,7]
[331227107,1720144244691,-200.0,0.00029534,7]
[331227108,1720144244701,-153.13329186,0.00029727,2]
[331227109,1720144244710,-9615.23092531,0.00029823,2]
[331227110,1720144244721,-276.79228471,0.0003,4]
[331227111,1720144244730,-382.79280705,0.0003,30]
[331227112,1720144244739,-260.0,0.0003,2]
[331227113,1720144244749,-153.13329186,0.00030239,7]
[331227114,1720144244758,-153.17748372,0.00030466,7]
[331227115,1720144244767,-210.31462431,0.00030552,7]
[331227116,1720144244777,-150.34002918,0.00030812,7]
[331227117,1720144244787,-159.2983416,0.00030903,7]
[331227118,1720144244798,-176.68873957,0.00031159,7]
[331227119,1720144244808,-153.17748372,0.00031275,7]
[331227120,1720144244818,-195.91881374,0.00031276,7]
[331227121,1720144244828,-153.17748372,0.0003134,7]
[331227122,1720144244837,-151.08380421,0.00031456,7]
[331227123,1720144244847,-151.08380421,0.00031776,7]
[331227124,1720144244856,-195.91881374,0.00031807,7]
[331227125,1720144244865,-218.619388,0.00031963,120]
[331227126,1720144244875,-153.17748372,0.00032054,7]
[331227127,1720144244884,-195.91881374,0.00032055,7]
[331227128,1720144244894,-150.34002918,0.00032255,7]
[331227129,1720144244903,-9207.22733102,0.0003239,4]
[331227130,1720144244912,-88888.0,0.000324,5]
[331227131,1720144244922,-151.08380421,0.00032469,7]
[331227132,1720144244933,-2408.00783578,0.000325,60]
[331227133,1720144244943,-176.68873957,0.00032683,7]
[331227134,1720144244953,-260.0,0.00033,2]
[331227135,1720144244962,-210.31462431,0.00033084,7]
[331227136,1720144244972,-750.0,0.00033295,2]
[331227137,1720144244982,-151.08380421,0.00033325,7]
[331227138,1720144244991,-195.91881374,0.00033762,7]
[331227139,1720144245001,-9380.78685145,0.00033842,4]
[331227140,1720144245010,-195.91881374,0.00033992,7]
[331227141,1720144245020,-10000.0,0.0003444,3]
[331227142,1720144245029,-4603.61366551,0.00034457,4]
[331227143,1720144245039,-210.31462431,0.00034461,7]
[331227144,1720144245048,-210.31462431,0.00034475,7]
[331227145,1720144245058,-151.08380421,0.00034501,7]
[331227146,1720144245067,-2574.95126342,0.00034592,4]
[331227147,1720144245076,-1181.31020319,0.00034623,4]
[331227148,1720144245086,-642.76758109,0.00034642,4]
[331227149,1720144245095,-2846.41091448,0.00034642,4]
[331227150,1720144245104,-440.9209018,0.00034645,2]
[331227151,1720144245113,-170.32678473,0.00034669,4]
[331227152,1720144245122,-154.79103211,0.0003467,4]
[331227153,1720144245132,-2316.79226907,0.0003467,4]
[331227154,1720144245141,-685.34975868,0.00034688,4]
[331227155,1720144245150,-153.17748372,0.00034705,7]
[331227156,1720144245159,-2865.4309312,0.00034899,4]
[331227157,1720144245168,-155.34279108,0.00034989,4]
[331227158,1720144245177,-655.29709415,0.00035,30]
[331227159,1720144245189,-210.31462431,0.00035063,7]
[331227160,1720144245198,-159.54122349,0.00035105,7]
[331227161,1720144245207,-195.91881374,0.00035108,7]
[331227162,1720144245217,-176.68873957,0.00035177,7]
[331227163,1720144245226,-346.68161193,0.00035243,2]
[331227164,1720144245235,-210.31462431,0.00035256,7]
[331227165,1720144245244,-210.31462431,0.00035259,7]
[331227166,1720144245253,-2146.27761673,0.00035259,14]
[331227167,1720144245262,-2143.84238177,0.00035292,2]
[331227168,1720144245272,-153.17748372,0.00035409,7]
[331227169,1720144245281,-166.78796466,0.00035422,7]
[331227170,1720144245290,-153.13329186,0.00035493,7]
[331227171,1720144245300,-210.31462431,0.00035578,7]
[331227172,1720144245309,-4603.61366551,0.00035606,4]
[331227173,1720144245319,-2196.40771411,0.00035615,4]
[331227174,1720144245328,-155.04482031,0.00035615,4]
[331227175,1720144245337,-29898.71,0.00035616,3]
[331227176,1720144245346,-24915.59,0.00035616,3]
[331227177,1720144245356,-20762.99,0.00035616,3]
[331227178,1720144245365,-153.13329186,0.00035661,7]
[331227179,1720144245374,-153.13329186,0.00035688,7]
[331227180,1720144245384,-1313.31625762,0.00035999,4]
[331227181,1720144245394,-260.0,0.00036,2]
[331227182,1720144245403,-195.91881374,0.00036002,7]
[331227183,1720144245412,-153.13329186,0.00036132,7]
[331227184,1720144245523,-257.55019122,0.0003624,2]
[331227185,1720144245533,-195.91881374,0.00036318,7]
[331227186,1720144245544,-153.17748372,0.0003633,7]
[331227187,1720144245553,-218.619388,0.0003653,120]
[331227188,1720144245562,-195.91881374,0.00036643,7]
[331227189,1720144245572,-1091.40807892,0.00036732,21]
[331227190,1720144245581,-153.13329186,0.00036862,7]
[331227191,1720144245590,-154.83299546,0.00037,4]
[331227192,1720144245599,-1112.58968847,0.0003707,31]
[331227193,1720144245609,-195.91881374,0.00037327,7]
[331227194,1720144245619,-159.54122349,0.00037364,7]
[331227195,1720144245627,-210.31462431,0.00037424,7]
[331227196,1720144245637,-176.68873957,0.00037544,7]
[331227197,1720144245649,-153.17748372,0.00037878,7]
[331227198,1720144245658,-675.24555294,0.00037999,4]
[331227199,1720144245668,-448.41042787,0.00038,120]
[331227200,1720144245678,-195.91881374,0.00038048,7]
[331227201,1720144245691,-176.68873957,0.00038297,7]
[331227202,1720144245700,-210.31462431,0.00038453,7]
[331227203,1720144245709,-471.27760912,0.00038499,4]
[331227204,1720144245719,-471.27760912,0.00038499,4]
[331227205,1720144245729,-153.13329186,0.00038707,7]
[331227206,1720144245740,-210.31462431,0.00038885,7]
[331227207,1720144245748,-153.17748372,0.00038949,7]
[331227208,1720144245758,-256.53141225,0.00038999,2]
[331227209,1720144245767,-195.91881374,0.00039066,7]
[331227210,1720144245776,-360.48479037,0.00039177,4]
[331227211,1720144245786,-435.0,0.00039177,2]
[331227212,1720144245796,-235.33275104,0.00039177,4]
[331227213,1720144245805,-176.68873957,0.00039363,7]
[331227214,1720144245816,-210.31462431,0.0003937,7]
[331227215,1720144245825,-215.10199221,0.00039393,4]
[331227216,1720144245834,-154.79103211,0.00039393,10]
[331227217,1720144245844,-750.0,0.00039394,2]
[331227218,1720144245853,-176.68873957,0.00039409,7]
[331227219,1720144245863,-175.66791452,0.00039462,7]
[331227220,1720144245872,-195.91881374,0.00039608,7]
[331227221,1720144245882,-159.54122349,0.00039662,7]
[331227222,1720144245891,-210.31462431,0.00039684,7]
[331227223,1720144245901,-176.68873957,0.00039773,7]
[331227224,1720144245910,-195.91881374,0.00039776,7]
[331227225,1720144245919,-210.31462431,0.00039815,7]
[331227226,1720144245929,-4603.61366551,0.00039984,5]
[331227227,1720144245940,-3990.00210664,0.0003999,4]
[331227228,1720144245950,-371.39375676,0.00039999,4]
[331227229,1720144245961,-176.70502713,0.0004,15]
[331227230,1720144245971,-151.0,0.0004,120]
[331227231,1720144245980,-151.0,0.0004,120]
[331227232,1720144245989,-885.79510938,0.0004,120]
[331227233,1720144245999,-24533.52155657,0.0004,14]
[331227234,1720144246008,-2685.44436551,0.0004,15]
[331227235,1720144246017,-4831.13261368,0.0004,2]
[331227236,1720144246027,-210.31462431,0.00040143,30]
[331227237,1720144246036,-150.34002918,0.00040182,30]
[331227238,1720144246046,-166.78796468,0.00040221,30]
[331227239,1720144246055,-195.91881374,0.00040237,30]
[331227240,1720144246065,-159.54122349,0.00040297,30]
[331227241,1720144246075,-195.91881374,0.00040353,30]
[331227242,1720144246085,-195.91881374,0.00040473,30]
[331227243,1720144246094,-150.558,0.00040681,2]
[331227244,1720144246104,-880.098,0.00040681,2]
[331227245,1720144246113,-160.696,0.00040681,2]
[331227246,1720144246122,-153.13329186,0.00040819,30]
[331227247,1720144246132,-153.13329186,0.00040857,30]
[331227248,1720144246142,-153.13329186,0.00040868,30]
[331227249,1720144246152,-210.31462431,0.00040881,30]
[331227250,1720144246161,-18306.53524639,0.00041,2]
[331227251,1720144246171,-9115.31248333,0.00041,30]
[331227252,1720144246183,-218.619388,0.00041096,120]
[331227253,1720144246192,-4603.61366551,0.00041101,5]
[331227254,1720144246202,-4603.61366551,0.00041101,5]
[331227255,1720144246211,-151.0,0.00041111,14]
[331227256,1720144246220,-151.0,0.00041111,14]
[331227257,1720144246229,-151.0,0.00041111,14]
[331227258,1720144246239,-82000.421068,0.00041111,2]
[331227259,1720144246248,-176.68873957,0.00041138,30]
[331227260,1720144246258,-176.68873957,0.00041325,30]
[331227261,1720144246267,-151.0,0.00041726,120]
[331227262,1720144246276,-195.91881374,0.00041839,30]
[331227263,1720144246286,-153.13329186,0.00041971,30]
[331227264,1720144246295,-176.68873957,0.00042,30]
[331227265,1720144246304,-159.314574,0.00042009,2]
[331227266,1720144246313,-153.13329186,0.00042094,30]
[331227267,1720144246323,-346.68161193,0.00042129,2]
[331227268,1720144246332,-153.13329186,0.0004241,30]
[331227269,1720144246342,-153.17748372,0.00043336,30]
[331227270,1720144246352,-151.0,0.00043452,120]
[331227271,1720144246361,-210.31462431,0.00043579,30]
[331227272,1720144246371,-210.31462431,0.00043594,30]
[331227273,1720144246381,-150.0,0.00043681,2]
[331227274,1720144246391,-877.0,0.00043681,2]
[331227275,1720144246401,-210.31462431,0.00043737,30]
[331227276,1720144246411,-157.05959588,0.000438,60]
[331227277,1720144246420,-249.17009153,0.00044,90]
[331227278,1720144246430,-176.68873957,0.0004421,30]
[331227279,1720144246440,-153.13329186,0.00044294,30]
[331227280,1720144246450,-210.31462431,0.00044487,30]
[331227281,1720144246459,-153.13329186,0.00044719,30]
[331227282,1720144246469,-195.91881374,0.00044828,30]
[331227283,1720144246479,-151.0,0.00044828,14]
[331227284,1720144246488,-153.053412,0.00044828,14]
[331227285,1720144246498,-151.0,0.00044828,14]
[331227286,1720144246507,-226.229027,0.00044828,14]
[331227287,1720144246516,-670.374499,0.00044828,14]
[331227288,1720144246525,-151.0,0.00044828,14]
[331227289,1720144246534,-226.229027,0.00044828,14]
[331227290,1720144246543,-670.374499,0.00044828,14]
[331227291,1720144246553,-151.0,0.00044828,14]
[331227292,1720144246562,-151.0,0.00044828,14]
[331227293,1720144246571,-195.814252,0.00044828,14]
[331227294,1720144246579,-4603.61366551,0.00044911,5]
[331227295,1720144246589,-10000.0,0.00044921,4]
[331227296,1720144246598,-427.25903295,0.00045,120]
[331227297,1720144246608,-5293.93123,0.00045,120]
[331227298,1720144246623,-151.465463,0.00045,14]
[331227299,1720144246632,-151.0,0.00045,14]
[331227300,1720144246641,-151.0,0.00045,14]
[331227301,1720144246650,-151.0,0.00045,14]
[331227302,1720144246662,-152.686926,0.00045,14]
[331227303,1720144246671,-152.686926,0.00045,14]
[331227304,1720144246683,-151.0,0.00045178,120]
[331227305,1720144246692,-195.91881374,0.00045199,30]
[331227306,1720144246703,-153.17748372,0.00045207,30]
[331227307,1720144246713,-159.54122354,0.00045268,30]
[331227308,1720144246723,-750.0,0.00045494,2]
[331227309,1720144246733,-210.31462431,0.00045601,30]
[331227310,1720144246742,-210.31462431,0.00045623,30]
[331227311,1720144246751,-176.68873957,0.00045652,30]
[331227312,1720144246759,-379.94701281,0.000458,30]
[331227313,1720144246769,-153.13329186,0.00045999,30]
[331227314,1720144246778,-153.13329186,0.00046019,30]
[331227315,1720144246788,-176.68873957,0.0004607,30]
[331227316,1720144246798,-151.08380421,0.000462,30]
[331227317,1720144246807,-176.68873957,0.00046446,30]
[331227318,1720144246818,-159.29834161,0.00046449,30]
[331227319,1720144246827,-877.0,0.00046681,2]
[331227320,1720144246836,-153.13329186,0.00046838,30]
[331227321,1720144246846,-151.0,0.00046849,90]
[331227322,1720144246855,-153.13329186,0.00046877,30]
[331227323,1720144246864,-151.0,0.00046904,120]
[331227324,1720144246874,-150.34002918,0.00046957,30]
[331227325,1720144246883,-151.0,0.00047,90]
[331227326,1720144246893,-153.13329186,0.00047107,30]
[331227327,1720144246902,-176.68873957,0.00047306,30]
[331227328,1720144246912,-176.68873957,0.0004734,30]
[331227329,1720144246920,-151.08380421,0.00047728,30]
[331227330,1720144246930,-10000.0,0.00047753,4]